bitfinex-derivatives/quotes_BTCF0:USTF0_20250827
["timestamp","ask_amount","ask_price","bid_price","bid_amount"]
[1756267014052,0.9930849,111540.0,111530.0,1.27123213]
[1756267015456,0.9930849,111540.0,111530.0,0.92373504]
[1756267016355,0.9930849,111540.0,111530.0,0.8438828]
[1756267017358,0.9928449,111540.0,111530.0,1.25097096]
[1756267018259,0.0966449,111540.0,111530.0,1.25097096]
[1756267018556,0.9927249,111540.0,111530.0,1.25097096]
[1756267019054,0.007,111540.0,111530.0,1.25097096]
[1756267019360,0.90304,111540.0,111530.0,1.25097096]
[1756267020656,0.06199178,111550.0,111540.0,0.089645]
[1756267020952,0.95791178,111550.0,111540.0,1.01986358]
[1756267021158,1.04754878,111550.0,111540.0,1.01986358]
[1756267021663,1.04754878,111550.0,111540.0,1.09972065]
[1756267021959,1.04754878,111550.0,111540.0,1.01986358]
[1756267022352,1.05054878,111550.0,111540.0,1.09971108]
[1756267022562,1.05054878,111550.0,111540.0,1.01986358]
[1756267022764,1.05054878,111550.0,111540.0,1.13168104]
[1756267023261,1.05050878,111550.0,111540.0,1.13168104]
[1756267024864,1.05050878,111550.0,111540.0,0.72459288]
[1756267025065,1.05050878,111550.0,111540.0,1.13168104]
[1756267025669,2.37545673,111570.0,111540.0,1.13168104]
[1756267025670,0.16117827,111570.0,111560.0,0.232059]
[1756267025866,1.10251061,111570.0,111560.0,0.232059]
[1756267026054,1.10251061,111570.0,111560.0,0.31185627]
[1756267026763,1.01288611,111570.0,111560.0,0.31185627]
[1756267027068,1.01288611,111570.0,111560.0,0.67265627]
[1756267027366,1.01280611,111570.0,111560.0,0.67265627]
[1756267027758,0.99482234,111570.0,111560.0,0.67265627]
[1756267027960,0.96048234,111570.0,111560.0,1.07974443]
[1756267028156,0.94121234,111570.0,111560.0,0.592859]
[1756267028764,0.99664234,111570.0,111560.0,0.99994716]
[1756267029469,0.99264234,111570.0,111560.0,0.99994716]
[1756267029768,1.01364234,111570.0,111560.0,1.00194716]
[1756267029966,1.01364234,111570.0,111560.0,1.11376462]
[1756267030165,1.01364234,111570.0,111560.0,0.70667646]
[1756267031162,0.96221234,111570.0,111560.0,1.00194716]
[1756267031363,0.11832234,111570.0,111560.0,1.00194716]
[1756267031659,0.11832234,111570.0,111560.0,0.594859]
[1756267031865,0.11832234,111570.0,111560.0,1.00194716]
[1756267032167,0.021,111570.0,111560.0,1.25194716]
[1756267032864,0.021,111570.0,111560.0,1.36376462]
[1756267033472,0.08904997,111570.0,111560.0,2.25860462]
[1756267033670,0.08904997,111570.0,111560.0,2.14678716]
[1756267033867,0.19976097,111570.0,111560.0,0.58477648]
[1756267034064,0.19976097,111570.0,111560.0,0.50523]
[1756267034261,0.60684913,111570.0,111560.0,0.50523]
[1756267034565,0.87478116,111570.0,111560.0,0.47005648]
[1756267034765,0.87478116,111570.0,111560.0,0.39051]
[1756267035371,0.467693,111570.0,111560.0,0.50577]
[1756267035571,0.56501103,111570.0,111560.0,0.50577]
[1756267036576,0.56501103,111570.0,111560.0,0.14497]
[1756267036772,1.17581103,111570.0,111560.0,0.02971]
[1756267037374,1.17581103,111570.0,111560.0,0.002]
[1756267037675,0.139067,111550.0,111540.0,0.2254969]
[1756267037880,1.38094503,111550.0,111540.0,0.2444669]
[1756267038572,1.38094503,111550.0,111540.0,0.6052669]
[1756267038772,1.033627,111550.0,111540.0,0.2444669]
[1756267038969,1.38094503,111550.0,111540.0,0.1686969]
[1756267039164,1.74174503,111550.0,111540.0,0.04966042]
[1756267039365,1.80157042,111550.0,111540.0,0.04966042]
[1756267039566,1.81957042,111550.0,111540.0,0.05166042]
[1756267042281,2.06957042,111550.0,111540.0,0.002]
[1756267042867,2.06929042,111550.0,111540.0,0.03176]
[1756267043071,1.17501042,111550.0,111540.0,0.03176]
[1756267043378,2.06929042,111550.0,111540.0,0.03176]
[1756267043676,2.06929042,111550.0,111540.0,0.07353]
[1756267044178,1.17501042,111550.0,111540.0,0.07353]
[1756267044379,1.70841042,111550.0,111540.0,0.14702]
[1756267044570,2.06921042,111550.0,111540.0,0.002]
[1756267044972,2.06921042,111550.0,111530.0,0.10930648]
[1756267044973,0.137075,111540.0,111530.0,0.20559648]
[1756267045177,1.43841842,111540.0,111530.0,0.22456648]
[1756267046379,0.56021842,111540.0,111530.0,0.31621958]
[1756267046579,1.45429842,111540.0,111530.0,0.31621958]
[1756267047379,1.047155,111540.0,111530.0,0.31621958]
[1756267048881,1.047155,111540.0,111530.0,0.22656648]
[1756267050381,1.45429842,111540.0,111530.0,0.22656648]
[1756267052078,0.56021842,111540.0,111530.0,0.22656648]
[1756267052279,1.45409842,111540.0,111530.0,0.22656648]
[1756267053082,1.046955,111540.0,111530.0,0.22656648]
[1756267054688,1.45409842,111540.0,111530.0,0.22656648]
[1756267054890,1.45409842,111540.0,111530.0,0.12807648]
[1756267055594,1.45409842,111540.0,111530.0,0.22656648]
[1756267055993,0.153075,111540.0,111530.0,0.19476648]
[1756267056193,1.046675,111540.0,111530.0,0.47656648]
[1756267056396,0.153075,111540.0,111530.0,0.56621958]
[1756267056594,1.046555,111540.0,111530.0,0.56621958]
[1756267056896,1.046555,111540.0,111530.0,0.4866731]
[1756267057095,1.046555,111540.0,111530.0,0.8474731]
[1756267057397,1.046555,111540.0,111530.0,0.92701958]
[1756267057600,1.046555,111540.0,111530.0,0.83736648]
[1756267058498,1.046555,111540.0,111530.0,0.75782]
[1756267058692,1.046555,111540.0,111530.0,0.8474731]
[1756267059097,0.998965,111540.0,111530.0,1.25461652]
[1756267059299,0.105645,111540.0,111530.0,1.27436201]
[1756267059699,0.016,111540.0,111530.0,1.61436201]
[1756267059894,0.016,111540.0,111530.0,1.19481553]
[1756267060296,0.1533051,111540.0,111530.0,0.8474731]
[1756267060498,0.1056451,111540.0,111530.0,1.19481553]
[1756267061298,0.016,111540.0,111530.0,1.19481553]
[1756267061595,1.02749494,111560.0,111550.0,0.207927]
[1756267061800,1.04881494,111560.0,111550.0,0.593967]
[1756267062300,1.00103494,111560.0,111550.0,1.02105501]
[1756267062500,1.00103494,111560.0,111550.0,0.94130943]
[1756267062801,1.786462,111570.0,111550.0,0.94130943]
[1756267062802,1.0859668,111570.0,111560.0,0.233159]
[1756267063002,1.0859668,111570.0,111560.0,0.94130143]
[1756267063300,1.0859668,111570.0,111560.0,1.02105526]
[1756267064395,1.0859668,111570.0,111560.0,1.02205526]
[1756267064396,1.0979668,111570.0,111560.0,1.02205526]
[1756267064701,0.92840537,111570.0,111560.0,0.67471283]
[1756267064901,0.93644537,111570.0,111560.0,1.02205526]
[1756267065102,1.02607017,111570.0,111560.0,1.02205526]
[1756267065303,1.02607017,111570.0,111560.0,0.67471283]
[1756267065505,1.09769731,111570.0,111560.0,0.58508383]
[1756267065704,1.42903974,111570.0,111560.0,0.58508383]
[1756267066215,1.69503974,111570.0,111560.0,0.19155383]
[1756267066502,1.69503974,111570.0,111560.0,0.12514383]
[1756267066708,1.69503974,111570.0,111560.0,0.14453]
[1756267066709,0.46063194,111570.0,111560.0,0.14453]
[1756267066912,1.03917194,111570.0,111560.0,1.04174122]
[1756267067101,1.08195194,111570.0,111560.0,0.60476979]
[1756267067301,1.42929437,111570.0,111560.0,0.24396979]
[1756267067506,1.42929437,111570.0,111560.0,0.16692979]
[1756267067812,1.79009437,111570.0,111560.0,0.04912596]
[1756267068204,2.04009437,111570.0,111560.0,0.02068596]
[1756267068610,2.04009437,111570.0,111560.0,0.06507596]
[1756267069604,2.04009437,111570.0,111560.0,0.14482979]
[1756267069999,1.69275194,111570.0,111560.0,0.16692979]
[1756267070205,1.42647194,111570.0,111560.0,0.51155839]
[1756267070609,1.06567194,111570.0,111560.0,1.04174122]
[1756267071111,1.06567194,111570.0,111560.0,0.69439879]
[1756267072211,1.08167194,111570.0,111560.0,0.60476979]
[1756267072618,1.42901437,111570.0,111560.0,0.24396979]
[1756267073510,0.53665437,111570.0,111560.0,0.24396979]
[1756267073809,1.42881437,111570.0,111560.0,0.24396979]
[1756267074605,1.08147194,111570.0,111560.0,0.24396979]
[1756267074810,1.42873437,111570.0,111560.0,0.24396979]
[1756267075408,0.53665437,111570.0,111560.0,0.24396979]
[1756267075610,1.06527194,111570.0,111560.0,0.60476979]
[1756267075808,1.06527194,111570.0,111560.0,0.95211222]
[1756267076213,1.06527194,111570.0,111560.0,0.60476979]
[1756267076616,1.08127194,111570.0,111560.0,0.60476979]
[1756267078314,1.42861437,111570.0,111560.0,0.24396979]
[1756267079319,1.42861437,111570.0,111560.0,0.16692979]
[1756267079915,1.42861437,111570.0,111560.0,0.14482979]
[1756267080215,2.03941437,111570.0,111560.0,0.12887979]
[1756267080513,2.03941437,111570.0,111560.0,0.10043979]
[1756267081419,2.03941437,111570.0,111560.0,0.02068596]
[1756267082411,0.089629,111560.0,111550.0,0.07975383]
[1756267082612,0.089637,111550.0,111540.0,0.48931887]
[1756267082915,1.36307943,111550.0,111540.0,0.04876504]
[1756267083315,1.36307943,111550.0,111540.0,0.06471504]
[1756267083510,1.99189592,111550.0,111540.0,0.02032504]
[1756267083710,1.99089592,111550.0,111540.0,0.07983829]
[1756267083918,0.1243851,111540.0,111530.0,0.10827829]
[1756267084113,0.83252753,111540.0,111530.0,0.10827829]
[1756267084808,0.1243851,111540.0,111530.0,0.22336829]
[1756267085009,1.36288753,111540.0,111530.0,0.22336829]
[1756267085410,1.0165451,111540.0,111530.0,0.22336829]
[1756267085615,1.34788753,111540.0,111530.0,0.14353]
[1756267085915,1.36388753,111540.0,111530.0,0.14353]
[1756267086115,1.36388753,111540.0,111530.0,0.22337787]
[1756267086716,1.37488753,111540.0,111530.0,0.22437787]
[1756267087218,1.37488753,111540.0,111530.0,0.14733787]
[1756267087515,1.73568753,111540.0,111530.0,0.001]
[1756267088602,1.73568753,111540.0,111530.0,0.08084787]
[1756267088603,1.98568753,111540.0,111530.0,0.08084787]
[1756267089005,1.98568753,111540.0,111520.0,0.07984787]
[1756267089208,0.83151553,111530.0,111520.0,0.07984787]
[1756267090610,0.83151553,111530.0,111520.0,0.08084787]
[1756267090911,0.83351553,111530.0,111520.0,0.08084787]
[1756267091112,0.83351553,111530.0,111520.0,0.07984787]
[1756267091316,0.84551553,111530.0,111520.0,0.08084787]
[1756267091715,0.84551553,111530.0,111520.0,0.10869787]
[1756267092212,0.84551553,111530.0,111520.0,0.08084787]
[1756267092418,0.84551553,111530.0,111520.0,0.001]
[1756267093012,0.86370396,111530.0,111520.0,0.001]
[1756267093213,1.11370396,111530.0,111520.0,0.001]
[1756267094617,1.18456569,111530.0,111520.0,0.001]
[1756267094819,1.30210526,111530.0,111520.0,0.001]
[1756267100417,0.1036612,111520.0,111510.0,0.01971381]
[1756267100618,1.72064363,111520.0,111510.0,0.06402381]
[1756267101328,1.72064363,111520.0,111510.0,0.04756381]
[1756267102019,1.72664363,111520.0,111510.0,0.04856381]
[1756267103317,1.72764363,111520.0,111510.0,0.04856381]
[1756267103516,1.72764363,111520.0,111510.0,0.04756381]
[1756267103719,1.72964363,111520.0,111510.0,0.04856381]
[1756267104023,1.72864363,111520.0,111510.0,0.04856381]
[1756267104216,1.73064363,111520.0,111510.0,0.04856381]
[1756267104623,1.73064363,111520.0,111510.0,0.02071381]
[1756267105223,2.07798606,111520.0,111510.0,0.02071381]
[1756267106018,1.73064363,111520.0,111510.0,0.04856381]
[1756267106223,1.3833012,111520.0,111510.0,0.04856381]
[1756267106422,1.73064363,111520.0,111510.0,0.04856381]
[1756267108224,1.73064363,111520.0,111510.0,0.02071381]
[1756267108624,2.07798606,111520.0,111510.0,0.02071381]
[1756267109124,2.07730606,111520.0,111510.0,0.02071381]
[1756267109526,2.07730606,111520.0,111510.0,0.04856381]
[1756267109726,2.07730606,111520.0,111510.0,0.02071381]
[1756267110027,2.07722606,111520.0,111510.0,0.02071381]
[1756267110827,2.43722606,111520.0,111510.0,0.02071381]
[1756267111424,2.07722606,111520.0,111510.0,0.02071381]
[1756267111822,2.07714606,111520.0,111510.0,0.02071381]
[1756267112421,0.4931812,111520.0,111510.0,0.06502381]
[1756267112621,1.72972363,111520.0,111510.0,0.06502381]
[1756267114731,1.72972363,111520.0,111510.0,0.02071381]
[1756267114922,1.72972363,111520.0,111510.0,0.04856381]
[1756267115228,2.07706606,111520.0,111510.0,0.04856381]
[1756267115529,1.18786606,111520.0,111510.0,0.06502381]
[1756267115728,2.07686606,111520.0,111510.0,0.06502381]
[1756267117328,2.07686606,111520.0,111510.0,0.04856381]
[1756267117732,2.07686606,111520.0,111510.0,0.02071381]
[1756267118023,2.40686606,111520.0,111510.0,0.02071381]
[1756267118928,2.09686606,111520.0,111510.0,0.02071381]
[1756267119128,2.07686606,111520.0,111510.0,0.02071381]
[1756267119328,2.41686606,111520.0,111510.0,0.02071381]
[1756267119525,2.43686606,111520.0,111510.0,0.02071381]
[1756267119932,2.09686606,111520.0,111510.0,0.02071381]
[1756267120127,2.07686606,111520.0,111510.0,0.02071381]
[1756267120534,2.44686606,111520.0,111510.0,0.02071381]
[1756267120734,2.07686606,111520.0,111510.0,0.02071381]
[1756267121130,2.40686606,111520.0,111510.0,0.02071381]
[1756267121331,2.40686606,111520.0,111510.0,0.001]
[1756267121634,2.44686606,111520.0,111510.0,0.001]
[1756267122027,2.44686606,111520.0,111500.0,0.02726]
[1756267122028,0.1078193,111510.0,111500.0,0.02726]
[1756267122223,0.82896173,111510.0,111500.0,0.02726]
[1756267122535,0.1208273,111500.0,111490.0,0.12326]
[1756267122834,1.71728973,111500.0,111490.0,0.12326]
[1756267123028,0.1208353,111490.0,111480.0,0.06631]
[1756267123230,0.1894934,111480.0,111470.0,0.08470161]
[1756267123535,1.42507583,111480.0,111470.0,0.08470161]
[1756267123930,0.53683583,111480.0,111470.0,0.08470161]
[1756267124135,1.42503583,111480.0,111470.0,0.08470161]
[1756267124935,0.53683583,111480.0,111470.0,0.08470161]
[1756267125131,1.42395583,111480.0,111470.0,0.08470161]
[1756267125337,1.42395583,111480.0,111470.0,0.13585161]
[1756267125636,1.42495583,111480.0,111470.0,0.13785161]
[1756267125934,1.42487583,111480.0,111470.0,0.13785161]
[1756267126130,1.45704849,111480.0,111470.0,0.13785161]
[1756267127531,0.56900849,111480.0,111470.0,0.13785161]
[1756267127738,1.45688849,111480.0,111470.0,0.13785161]
[1756267129332,1.10954606,111480.0,111470.0,0.13785161]
[1756267129530,1.45688849,111480.0,111470.0,0.13785161]
[1756267131331,1.10922606,111480.0,111470.0,0.13785161]
[1756267131635,1.45656849,111480.0,111470.0,0.13785161]
[1756267132941,0.56900849,111480.0,111470.0,0.13785161]
[1756267133238,1.45660849,111480.0,111470.0,0.13785161]
[1756267133733,1.45660849,111480.0,111470.0,0.11048]
[1756267133928,0.56900849,111480.0,111470.0,0.5940414]
[1756267134134,0.19357606,111480.0,111470.0,1.19138383]
[1756267134334,1.04288606,111480.0,111470.0,1.19138383]
[1756267134935,1.04857606,111480.0,111470.0,1.2712317]
[1756267135135,1.04857606,111480.0,111470.0,1.19138383]
[1756267135335,1.04857606,111480.0,111470.0,1.2712317]
[1756267135737,1.07178606,111480.0,111470.0,1.2712317]
[1756267136642,1.09987606,111480.0,111470.0,1.1815303]
[1756267136843,1.10898606,111480.0,111470.0,0.75434]
[1756267137738,0.22166606,111480.0,111470.0,0.8440414]
[1756267137934,1.08065606,111480.0,111470.0,0.8440414]
[1756267138138,1.10874606,111480.0,111470.0,1.19138383]
[1756267138642,1.10874606,111480.0,111470.0,0.8440414]
[1756267139144,1.10874606,111480.0,111470.0,0.5940414]
[1756267139145,0.18788606,111480.0,111470.0,0.5940414]
[1756267139347,0.19357606,111480.0,111470.0,0.5940414]
[1756267139542,1.05716606,111480.0,111470.0,0.5940414]
[1756267139747,1.07126606,111480.0,111470.0,0.5940414]
[1756267140450,1.08037606,111480.0,111470.0,0.5940414]
[1756267140754,0.0896934,111480.0,111470.0,1.19138383]
[1756267141040,0.1896034,111480.0,111470.0,0.75434]
[1756267142244,0.53694583,111480.0,111470.0,0.75434]
[1756267142549,0.56961528,111480.0,111470.0,0.11048]
[1756267142745,0.56961528,111480.0,111470.0,0.14354]
[1756267143047,0.56961528,111480.0,111470.0,0.06831]
[1756267143350,0.56961528,111480.0,111470.0,0.14354]
[1756267144351,0.56961528,111480.0,111470.0,0.50434]
[1756267144550,1.08042285,111480.0,111470.0,0.50434]
[1756267144851,1.10851285,111480.0,111470.0,0.58418787]
[1756267145344,1.45585528,111480.0,111470.0,0.58418787]
[1756267147960,0.22327275,111480.0,111470.0,0.67388927]
[1756267148160,1.08118275,111480.0,111470.0,0.67388927]
[1756267148665,1.10963275,111480.0,111470.0,0.67388927]
[1756267149456,1.10963275,111480.0,111470.0,0.58418787]
[1756267149763,1.45697518,111480.0,111470.0,0.22208787]
[1756267149958,1.45697518,111480.0,111470.0,0.14224]
[1756267150257,0.22363275,111480.0,111470.0,0.14224]
[1756267150459,0.22363275,111480.0,111470.0,0.22208787]
[1756267150460,1.45673518,111480.0,111470.0,0.22208787]
[1756267151364,0.57097518,111480.0,111470.0,0.22208787]
[1756267151660,1.45653518,111480.0,111470.0,0.22208787]
[1756267152261,1.45653518,111480.0,111470.0,0.58288787]
[1756267152460,1.10919275,111480.0,111470.0,0.58288787]
[1756267152661,1.45653518,111480.0,111470.0,0.67258927]
[1756267153060,0.18949275,111480.0,111470.0,0.67258927]
[1756267153258,0.12336275,111480.0,111470.0,1.2699317]
[1756267153563,0.001,111480.0,111470.0,1.19008383]
[1756267153957,0.001,111480.0,111470.0,1.30190129]
[1756267153958,0.03321542,111480.0,111470.0,1.30190129]
[1756267154260,0.15173872,111480.0,111470.0,1.10038243]
[1756267154562,0.22323872,111480.0,111470.0,1.10038243]
[1756267154764,0.22323872,111480.0,111470.0,0.8427414]
[1756267155167,0.18567872,111480.0,111470.0,1.19008383]
[1756267156168,0.13861872,111480.0,111470.0,0.8427414]
[1756267156361,0.13861872,111480.0,111470.0,1.19008383]
[1756267158372,0.14430872,111480.0,111470.0,1.10038243]
[1756267159071,0.16744872,111480.0,111470.0,1.10038243]
[1756267159368,0.13861872,111480.0,111470.0,1.19008383]
[1756267159867,0.12290872,111480.0,111470.0,1.19008383]
[1756267160572,0.12290872,111480.0,111470.0,0.8427414]
[1756267160773,0.12290872,111480.0,111470.0,1.19008383]
[1756267161769,0.001,111480.0,111470.0,1.19008383]
[1756267162272,0.0906933,111480.0,111470.0,1.19008383]
[1756267163676,0.001,111480.0,111470.0,1.19008383]
[1756267163879,0.0906933,111480.0,111470.0,1.19008383]
[1756267164280,0.0906933,111480.0,111470.0,0.8427414]
[1756267164479,0.0906933,111480.0,111470.0,1.19008383]
[1756267165178,0.0906933,111480.0,111470.0,1.30190129]
[1756267165478,0.001,111480.0,111470.0,1.31008383]
[1756267165680,0.001,111480.0,111470.0,1.07008383]
[1756267165878,0.001,111480.0,111470.0,0.94008383]
[1756267166579,0.001,111480.0,111470.0,1.04008383]
[1756267166775,0.001,111480.0,111470.0,1.05190129]
[1756267166968,0.11718998,111490.0,111480.0,0.2296433]
[1756267167173,0.11718998,111490.0,111480.0,1.04960319]
[1756267168279,0.11818998,111490.0,111480.0,1.04960319]
[1756267168480,0.12418998,111490.0,111480.0,1.05060319]
[1756267168681,0.12418998,111490.0,111480.0,0.70326076]
[1756267168881,0.12418998,111490.0,111480.0,1.93436319]
[1756267169182,0.12418998,111490.0,111480.0,1.82254573]
[1756267170684,0.0966904,111490.0,111480.0,1.82254573]
[1756267170979,0.0966853,111490.0,111480.0,1.82254573]
[1756267172686,0.007,111490.0,111480.0,1.82254573]
[1756267172889,0.11671837,111500.0,111490.0,0.2296353]
[1756267173185,0.11671837,111500.0,111490.0,0.95802187]
[1756267173785,0.11671837,111500.0,111490.0,1.84126187]
[1756267173985,0.15354837,111500.0,111490.0,1.84126187]
[1756267174182,0.15354837,111500.0,111490.0,1.84226187]
[1756267174386,0.16054837,111500.0,111490.0,1.84226187]
[1756267175082,0.007,111500.0,111490.0,1.84226187]
[1756267175279,0.007,111500.0,111490.0,1.84126187]
[1756267175487,0.1823546,111510.0,111500.0,0.2296272]
[1756267175687,0.1823546,111510.0,111500.0,0.67044098]
[1756267175886,0.1686646,111510.0,111500.0,0.67044098]
[1756267176087,0.1823546,111510.0,111500.0,0.67044098]
[1756267177184,0.1236146,111510.0,111500.0,0.5904272]
[1756267177384,0.55594703,111510.0,111500.0,0.5904272]
[1756267177585,0.58262182,111510.0,111500.0,0.5904272]
[1756267177786,0.58262182,111510.0,111500.0,0.67041102]
[1756267177986,0.23527939,111510.0,111500.0,0.67041102]
[1756267178291,0.58262182,111510.0,111500.0,0.67041102]
[1756267178487,0.58662182,111510.0,111500.0,0.67141102]
[1756267178888,0.58762182,111510.0,111500.0,0.67141102]
[1756267179191,0.03167479,111510.0,111500.0,1.01875345]
[1756267179392,0.58766642,111510.0,111500.0,0.58173382]
[1756267179594,0.58866642,111510.0,111500.0,0.67141112]
[1756267179799,0.58866642,111510.0,111500.0,0.58173382]
[1756267180084,0.58866642,111510.0,111500.0,0.58308382]
[1756267180289,0.24132399,111510.0,111500.0,0.58308382]
[1756267180491,0.58866642,111510.0,111500.0,0.58308382]
[1756267181692,0.58866642,111510.0,111500.0,0.16611382]
[1756267181693,0.85663702,111510.0,111500.0,0.16611382]
[1756267181884,1.21743702,111510.0,111500.0,0.08098382]
[1756267182292,1.21743702,111510.0,111500.0,0.001]
[1756267186208,0.2060573,111500.0,111490.0,0.10022796]
[1756267186395,1.79615973,111500.0,111490.0,0.10022796]
[1756267187502,1.79615973,111500.0,111490.0,0.12856796]
[1756267188310,1.79715973,111500.0,111490.0,0.04858414]
[1756267188607,1.79715973,111500.0,111490.0,0.02024414]
[1756267188809,2.05115973,111500.0,111490.0,0.02124414]
[1756267190810,2.05115973,111500.0,111490.0,0.001]
[1756267200012,1.97896886,111500.0,111490.0,0.001]
[1756267201013,1.97896886,111500.0,111490.0,0.02934]
[1756267201706,1.97896886,111500.0,111490.0,0.001]
[1756267201911,0.1535937,111480.0,111470.0,0.08881]
[1756267202116,0.50093613,111480.0,111470.0,0.08881]
[1756267202312,1.38137613,111480.0,111470.0,0.08881]
[1756267202712,0.47512613,111480.0,111470.0,0.08881]
[1756267202912,0.47512613,111480.0,111470.0,0.44961]
[1756267203114,1.0081437,111480.0,111470.0,0.44961]
[1756267203312,1.35548613,111480.0,111470.0,0.44961]
[1756267203520,1.0081437,111480.0,111470.0,0.44961]
[1756267203820,0.9699737,111480.0,111470.0,1.18874413]
[1756267204117,0.9709737,111480.0,111470.0,0.7517]
[1756267204318,1.0013737,111480.0,111470.0,0.7517]
[1756267204516,0.0906937,111480.0,111470.0,0.7527]
[1756267204713,0.9709737,111480.0,111470.0,0.7527]
[1756267205913,0.9709737,111480.0,111470.0,0.5027]
[1756267206113,1.0090637,111480.0,111470.0,0.5027]
[1756267206513,0.1287837,111480.0,111470.0,0.1419]
[1756267206818,0.9832037,111480.0,111470.0,0.1419]
[1756267207217,0.9708937,111480.0,111470.0,0.1419]
[1756267207413,0.9707337,111480.0,111470.0,0.2316016]
[1756267207615,0.001,111480.0,111470.0,0.82894403]
[1756267207818,0.089693,111490.0,111480.0,0.2345835]
[1756267208010,0.089693,111490.0,111480.0,0.69398225]
[1756267208423,0.089693,111490.0,111480.0,0.34663982]
[1756267208918,0.089693,111490.0,111480.0,0.69398225]
[1756267209118,0.089693,111490.0,111480.0,0.34663982]
[1756267209315,0.089693,111490.0,111480.0,0.69398225]
[1756267209714,0.122283,111490.0,111480.0,0.60428875]
[1756267210023,0.089693,111490.0,111480.0,0.70743982]
[1756267210214,0.089693,111490.0,111480.0,0.96508875]
[1756267210215,0.103773,111490.0,111480.0,0.96508875]
[1756267210415,0.50423543,111490.0,111480.0,0.11181]
[1756267210619,0.50623543,111490.0,111480.0,0.06741]
[1756267210816,0.86703543,111490.0,111480.0,0.06741]
[1756267211115,0.86703543,111490.0,111480.0,0.04455]
[1756267211323,0.86703543,111490.0,111480.0,0.02808]
[1756267211520,0.86703543,111490.0,111480.0,0.10049]
[1756267211721,0.86703543,111490.0,111480.0,0.06741]
[1756267211921,0.86703543,111490.0,111480.0,0.10049]
[1756267212215,0.769693,111490.0,111480.0,0.02808]
[1756267212413,0.1568935,111480.0,111470.0,0.11181]
[1756267212614,1.38371593,111480.0,111470.0,0.06741]
[1756267213218,0.50423593,111480.0,111470.0,0.14489]
[1756267213420,1.38363593,111480.0,111470.0,0.14489]
[1756267213919,1.38463593,111480.0,111470.0,0.14489]
[1756267214816,1.38363593,111480.0,111470.0,0.14489]
[1756267215023,1.38563593,111480.0,111470.0,0.14589]
[1756267215618,1.38563593,111480.0,111470.0,0.12082]
[1756267215813,1.38563593,111480.0,111470.0,0.06741]
[1756267216320,1.38563593,111480.0,111470.0,0.14489]
[1756267219422,1.74643593,111480.0,111470.0,0.02808]
[1756267220027,1.74583593,111480.0,111470.0,0.04455]
[1756267220526,0.1569016,111470.0,111460.0,0.50569]
[1756267220726,0.50424403,111470.0,111460.0,0.50569]
[1756267220923,0.1569016,111470.0,111460.0,0.50569]
[1756267221122,0.50424403,111470.0,111460.0,0.50569]
[1756267221826,0.50524403,111470.0,111460.0,0.61874632]
[1756267223427,0.50524403,111470.0,111460.0,0.50669]
[1756267224124,0.57717006,111470.0,111460.0,0.50669]
[1756267224328,0.57717006,111470.0,111460.0,0.11281]
[1756267224525,0.57717006,111470.0,111460.0,0.06841]
[1756267224732,0.57717006,111470.0,111460.0,0.10149]
[1756267225224,0.57717006,111470.0,111460.0,0.06841]
[1756267225624,0.57717006,111470.0,111460.0,0.10149]
[1756267225829,0.22982763,111470.0,111460.0,0.14589]
[1756267226029,0.57717006,111470.0,111460.0,0.14589]
[1756267226424,1.45549006,111470.0,111460.0,0.14589]
[1756267227726,1.45541006,111470.0,111460.0,0.14589]
[1756267228828,1.08217763,111470.0,111460.0,0.2355993]
[1756267229830,1.10798763,111470.0,111460.0,0.14589]
[1756267230020,1.45533006,111470.0,111460.0,0.14589]
[1756267230424,1.45513006,111470.0,111460.0,0.14589]
[1756267231128,1.45513006,111470.0,111460.0,0.5963993]
[1756267231533,1.10774763,111470.0,111460.0,0.5963993]
[1756267232235,1.10774763,111470.0,111460.0,0.2355993]
[1756267232431,1.10774763,111470.0,111460.0,0.5963993]
[1756267235039,0.22982763,111470.0,111460.0,0.5963993]
[1756267235336,0.01552926,111470.0,111460.0,0.94374173]
[1756267235538,0.0897016,111470.0,111460.0,0.94374173]
[1756267235727,0.0896985,111480.0,111470.0,0.1318889]
[1756267235933,0.9671785,111480.0,111470.0,0.5953889]
[1756267236127,0.9788485,111480.0,111470.0,0.5953889]
[1756267238032,0.9808485,111480.0,111470.0,0.5953889]
[1756267239935,1.32819093,111480.0,111470.0,0.5953889]
[1756267240438,0.9808485,111480.0,111470.0,0.2345889]
[1756267240737,0.9808485,111480.0,111470.0,0.70744522]
[1756267241534,0.9881485,111480.0,111470.0,0.70744522]
[1756267241734,0.1033685,111480.0,111470.0,0.70744522]
[1756267241934,0.9804085,111480.0,111470.0,0.70744522]
[1756267242238,0.9804085,111480.0,111470.0,0.34664522]
[1756267242639,0.1033685,111480.0,111470.0,0.34664522]
[1756267242836,0.002,111480.0,111470.0,0.96424548]
[1756267243040,0.002,111480.0,111470.0,1.84108548]
[1756267244035,0.002,111480.0,111470.0,1.84104548]
[1756267244434,0.002,111480.0,111470.0,1.84096548]
[1756267245844,0.002,111480.0,111470.0,1.72890916]
[1756267248043,0.002,111480.0,111470.0,1.38156673]
[1756267248240,0.002,111480.0,111470.0,1.72890916]
[1756267248945,0.002,111480.0,111470.0,0.85218916]
[1756267249146,0.002,111480.0,111470.0,1.72842916]
[1756267250647,0.091693,111480.0,111470.0,0.85218916]
[1756267250840,0.103363,111480.0,111470.0,0.85218916]
[1756267251040,0.103363,111480.0,111470.0,0.50484673]
[1756267251240,0.103363,111480.0,111470.0,1.72822916]
[1756267251539,0.103363,111480.0,111470.0,0.85218916]
[1756267251746,0.103363,111480.0,111470.0,1.72818916]
[1756267251947,0.01367,111480.0,111470.0,1.72818916]
[1756267252740,0.002,111480.0,111470.0,1.72818916]
[1756267253846,0.45070543,111480.0,111470.0,0.25484673]
[1756267254041,0.45800543,111480.0,111470.0,0.25484673]
[1756267254243,0.60464243,111480.0,111470.0,0.25484673]
[1756267254446,0.52190602,111480.0,111470.0,0.25484673]
[1756267255247,0.61159902,111480.0,111470.0,0.25484673]
[1756267255543,0.42197432,111480.0,111470.0,0.25484673]
[1756267255744,0.42197432,111480.0,111470.0,0.10699783]
[1756267256047,0.339693,111480.0,111470.0,0.16465783]
[1756267256348,0.68703543,111480.0,111470.0,0.25435893]
[1756267256844,0.10756703,111490.0,111480.0,0.210093]
[1756267257048,0.0896912,111490.0,111480.0,0.58316543]
[1756267257346,0.0896912,111490.0,111480.0,0.235823]
[1756267257547,0.0896912,111490.0,111480.0,0.58316543]
[1756267257938,0.0896912,111490.0,111480.0,0.235823]
[1756267258145,0.0896912,111490.0,111480.0,0.58316543]
[1756267258551,0.0906912,111490.0,111480.0,0.58316543]
[1756267258742,0.0906912,111490.0,111480.0,0.235823]
[1756267258948,0.0906912,111490.0,111480.0,0.58316543]
[1756267259454,0.0916912,111490.0,111480.0,0.58316543]
[1756267259647,0.0916912,111490.0,111480.0,0.235823]